Cogmind - Beta 15 @@@ ROGUE MODE // 2025.08.31 @ 00:55:32 Player: SpeltIncorrectyl Result: Destroyed by H-55 Commando with Assault Rifle Performance ------------- Evolutions (1) 500 Regions Visited (6) 1200 Robots Destroyed (56) 280 Value Destroyed (880) 880 Prototype IDs (23) 460 Alien Tech Used (0) 0 Bonus (421) 421 TOTAL SCORE: 3741 Bonus ------- High Alert Combat Kills 40 Follower Combat Kills 81 Aligned with FarCom 300 Cogmind --------- Core Integrity 0/400 Matter 276/300 Energy 240/240 System Corruption 2% Temperature Cool (12) Movement Rolling (95) Ox1 Location -8/Mines Parts ------- > --- POWER (1) -------- Nuclear Core > --- PROPULSION (3) --- Wheel > --- UTILITY (3) ------ Small Storage Unit Launcher Guidance Computer Hacking Suite > --- WEAPON (2) ------- Minigun Minigun > --- INVENTORY (8) ---- Hover Unit Hover Unit Improved Hover Unit Large Matter Pod (150) Firepult Minigun Enhanced Flamer Peak State ------------ > --- POWER ------------ Light Deuterium Engine > --- PROPULSION ------- Wheel Wheel Wheel > --- UTILITY ---------- Small Storage Unit Launcher Guidance Computer Hacking Suite > --- WEAPON ----------- Minigun Minigun > --- INVENTORY -------- Ion Engine Hover Unit Hover Unit Improved Hover Unit Large Matter Pod Minigun Minigun Mini Grenade Launcher [Rating: 21] Favorites ----------- Power Ion Engine Engine Ion Engine Power Core Nuclear Core Propulsion Wheel Treads Light Treads Wheel Wheel Utility Small Storage Unit Storage Small Storage Unit Processor Launcher Guidance Computer Hackware Hacking Suite Weapon Minigun Ballistic Gun Minigun Launcher Mini Grenade Launcher Build | -11 -10 -10 -9 -9 -9 -8 ------- Run | Yrd Mat Min Mat Min Exi Min Slots Evolved 2 | . . . 2 . . . Power . | . . . . . . . Propulsion 1 | . . . 1 . . . Utility 1 | . . . 1 . . . Weapon . | . . . . . . . Parts Attached 26 | 6 3 2 13 1 . 1 Power 4 | 1 . 1 1 . . 1 Engine 3 | 1 . 1 1 . . . Core 1 | . . . . . . 1 Reactor . | . . . . . . . Propulsion 8 | 2 2 . 4 . . . Treads 2 | 2 . . . . . . Leg . | . . . . . . . Wheel 6 | . 2 . 4 . . . Hover . | . . . . . . . Flight . | . . . . . . . Utility 4 | 1 1 . 2 . . . Device . | . . . . . . . Storage 1 | 1 . . . . . . Processor 2 | . 1 . 1 . . . Hackware 1 | . . . 1 . . . Protection . | . . . . . . . Artifact . | . . . . . . . Weapon 10 | 2 . 1 6 1 . . Energy Gun . | . . . . . . . Energy Cannon . | . . . . . . . Ballistic Gun 8 | 2 . . 5 1 . . Ballistic Cannon . | . . . . . . . Launcher 2 | . . 1 1 . . . Special Weapon . | . . . . . . . Impact Weapon . | . . . . . . . Slashing Weapon . | . . . . . . . Piercing Weapon . | . . . . . . . Special Melee Weapon . | . . . . . . . Unidentified Prototypes . | . . . . . . . Parts Lost 11 | . 1 . 9 1 . . Power 1 | . . . 1 . . . Propulsion 6 | . 1 . 5 . . . Utility 1 | . . . 1 . . . Weapon 3 | . . . 2 1 . . Highest Loss Streak 3 | . 1 . 3 1 . . To Critical Strikes . | . . . . . . . Average Backups 6 | . 6 8 7 6 7 7 Power . | . 1 1 . . . . Propulsion 3 | . 3 3 3 3 3 3 Utility 1 | . . 1 1 2 1 1 Weapon 1 | . 1 2 2 1 2 3 Tool/Special . | . . . . . . . Unused Backups 14 | . 5 1 1 . 1 6 Power 2 | . 2 . . . . . Propulsion 8 | . 3 1 1 . . 3 Utility 2 | . . . . . 1 1 Weapon 2 | . . . . . . 2 Tool/Special . | . . . . . . . Average Slot Usage (%) 86 | . 94 100 86 75 77 77 Engine 11 | . 14 14 9 11 11 7 Treads 4 | . 17 . . . . . Wheel 16 | . 9 28 23 11 11 11 Storage 11 | . 14 14 11 11 11 11 Processor 12 | . 9 14 14 11 11 11 Hackware 5 | . . . 6 11 11 11 Ballistic Gun 21 | . 28 20 16 20 22 22 Launcher 2 | . . 7 4 . . . Peak Build Rating 21 | 6 8 10 21 17 19 21 Average Rating 13 | 4 6 8 16 16 18 19 On Entrance 10 | . 6 8 10 16 17 19 Naked Turns . | . . . . . . . Heaviest Build 18 | 12 12 14 16 16 16 18 Greatest Support 40 | 40 40 20 30 10 10 10 Greatest Overweight (x) 1 | . 1 . 1 1 1 1 Average Overweight (x) . | . . . . 1 1 1 Largest Inventory Capacity 8 | 8 8 8 8 8 8 8 Average Capacity 7 | 7 8 8 8 8 8 8 Most Carried 8 | 3 8 8 8 7 8 8 Average Carried 7 | . 6 7 7 6 7 8 Final Capacity 8 | 8 8 8 8 8 8 8 Final Carried 8 | 1 8 8 7 7 8 8 Class Distribution -------------------- 79% | Mutant 20% | Scavenger-Mutant Dominant Class ---------------- Mutant | -10/Materials Mutant | -10/Mines Scavenger-Mutant | -9/Materials Mutant | -9/Mines Mutant | -9/Exiles Mutant | -8/Mines Resources | -11 -10 -10 -9 -9 -9 -8 ----------- Run | Yrd Mat Min Mat Min Exi Min Matter Collected 1254 | 185 170 132 473 195 . 99 Remotely . | . . . . . . . Salvage Created 1165 | . 510 56 535 64 . . Parts 101 | . 37 6 50 8 . . Haulers Intercepted 3 | . 1 . 2 . . . Recyclers Shooed 1 | . 1 . . . . . Parts Field Recycled . | . . . . . . . Retrieved Matter . | . . . . . . . Parts Self-Destructed . | . . . . . . . Prevented . | . . . . . . . Kills | -11 -10 -10 -9 -9 -9 -8 ------- Run | Yrd Mat Min Mat Min Exi Min Combat Hostiles Destroyed 37 | . 9 8 15 5 . . Guns 16 | . 9 1 5 1 . . AOE 21 | . . 7 10 4 . . Classes Destroyed 11 | . 7 1 3 . . . Worker 10 | . 2 . 8 . . . Builder 2 | . . . 2 . . . Tunneler 1 | . . . 1 . . . Hauler 3 | . 1 . 2 . . . Recycler 2 | . 1 . 1 . . . Operator 1 | . 1 . . . . . Watcher 5 | . 3 . 2 . . . Swarmer 20 | . 3 3 10 4 . . Grunt 10 | . 6 . 3 1 . . Sentry 2 | . . . 2 . . . Assembled 5 | . . 5 . . . . Best Kill Streak 15 | . 4 5 15 4 . . Combat Bots Only 10 | . 4 5 10 4 . . Max Kills in Single Turn 4 | . 1 2 4 3 . . Gunslinging . | . . . . . . . Exploded 4 | . . 2 4 3 . . Melee . | . . . . . . . Uniques/NPCs Destroyed . | . . . . . . . Combat | -11 -10 -10 -9 -9 -9 -8 -------- Run | Yrd Mat Min Mat Min Exi Min Hostile Shots Fired 168 | . 40 12 103 5 . 8 Missed 51 | . 11 4 31 1 . 4 Hits 117 | . 29 8 72 4 . 4 Projectile 117 | . 29 8 72 4 . 4 Critical Strikes 1 | . . . 1 . . . Damage Taken 1642 | . 334 82 1083 82 . 61 Core 466 | . 47 10 367 12 . 30 Absorbed by Shields . | . . . . . . . Regen/Repaired (Parts) 36 | . . . 36 . . . Core Remaining (%) 88 | 100 . 77 . . . . Volleys Fired 119 | . 51 8 54 3 . 3 Largest 2 | . 2 2 2 2 . 2 Hottest 60 | . 40 40 60 50 . 50 Shots Fired 222 | . 102 10 100 4 . 6 Gun 194 | . 102 4 80 2 . 6 Cannon . | . . . . . . . Launcher 28 | . . 6 20 2 . . Special . | . . . . . . . Kinetic 194 | . 102 4 80 2 . 6 Thermal . | . . . . . . . Explosive 28 | . . 6 20 2 . . Electromagnetic . | . . . . . . . Robot Hit Streak 19 | . 19 6 14 2 . 1 Robot Miss Streak 3 | . 3 2 3 . . 3 Penetration Max . | . . . . . . . Secondary Targets 1 | . 1 . . . . . Max Gunslinging Chain 1 | . 1 . . . . . Shots Hit Robots 157 | . 78 7 68 2 . 2 Core Hits 100 | . 36 14 45 5 . . Critical Kills 1 | . 1 . . . . . Critical Parts Destroyed . | . . . . . . . Critical Strikes 1 | . 1 . . . . . Destroy 1 | . 1 . . . . . Melee Attacks . | . . . . . . . Impact . | . . . . . . . Slashing . | . . . . . . . Piercing . | . . . . . . . Sneak Attacks . | . . . . . . . Combat Hostiles . | . . . . . . . Follow-up Attacks . | . . . . . . . Damage Inflicted 3495 | . 678 320 2241 232 . 24 Guns 1508 | . 672 30 767 15 . 24 Cannons . | . . . . . . . Explosions 1981 | . . 290 1474 217 . . Melee . | . . . . . . . Ramming 6 | . 6 . . . . . Kinetic 1508 | . 672 30 767 15 . 24 Thermal 330 | . . . 330 . . . Explosive 1651 | . . 290 1144 217 . . Electromagnetic . | . . . . . . . Impact . | . . . . . . . Slashing . | . . . . . . . Piercing . | . . . . . . . Highest Corruption 2 | . . . 2 2 2 2 Average Corruption 2 | . . . 2 2 2 2 Corruption Purged . | . . . . . . . Corruption Blocked . | . . . . . . . Effects 12 | . . . 1 2 5 4 Message Errors 2 | . . . . . 1 1 Matter Fused 3 | . . . . 1 2 . Heat Flow Errors 2 | . . . . . 1 1 Energy Discharges 1 | . . . . . . 1 Data Loss (minor) 3 | . . . . 1 1 1 Misfires 1 | . . . 1 . . . Overload Shots . | . . . . . . . Overflow Damage 223 | . . . 200 23 . . Projectiles . | . . . . . . . Explosions 223 | . . . 200 23 . . Melee . | . . . . . . . Knockbacks . | . . . . . . . Impact . | . . . . . . . Kinetic . | . . . . . . . Secondary . | . . . . . . . Self-Inflicted Damage 216 | . 3 . 171 42 . . Shots 5 | . . . 3 2 . . Rammed 1 | . 1 . . . . . Targets Rammed 1 | . 1 . . . . . Kicked . | . . . . . . . Crushed . | . . . . . . . Highest Temperature 204 | . 18 15 32 4 83 204 Average Temperature 17 | . 9 10 8 3 48 74 Received Heat Transfer 482 | . 141 20 315 6 . . Siege Activations . | . . . . . . . Martial Activations . | . . . . . . . Shielding Activations . | . . . . . . . Robots Disrupted . | . . . . . . . Combat Hostiles . | . . . . . . . Robots Corrupted . | . . . . . . . Combat Hostiles . | . . . . . . . Parts Fried . | . . . . . . . Impact Corruptions . | . . . . . . . Robots Melted . | . . . . . . . Combat Hostiles . | . . . . . . . Parts Melted 1 | . . . 1 . . . Heat Transferred 250 | . . . 250 . . . Parts Sabotaged . | . . . . . . . Parts Stolen . | . . . . . . . Parts Stripped . | . . . . . . . Power Chain Reactions . | . . . . . . . Alert | -11 -10 -10 -9 -9 -9 -8 ------- Run | Yrd Mat Min Mat Min Exi Min Maximum Alert Level 2 | . . . 2 1 . . Low Security (%) 47 | 100 100 100 3 . . 100 Level 1 22 | . . . 26 99 . . Level 2 30 | . . . 70 . . . Level 3 . | . . . . . . . Level 4 . | . . . . . . . Level 5 . | . . . . . . . High Security . | . . . . . . . Max Security . | . . . . . . . Peak Influence 570 | . 147 130 570 343 . 34 Initial 193 | . . 30 44 193 . . Average 258 | . 69 87 465 296 . 3 Influence Increases 1646 | . 268 155 935 210 . 78 Destroy 0b10 Robot/C 740 | . 180 60 300 140 . 60 Destroy 0b10 Robot/NC 120 | . 40 . 80 . . . Destroy Leader 166 | . 48 10 78 20 . 10 Allied During Kill 12 | . . . . 4 . 8 Successful Hack 17 | . . . 17 . . . Disable Machine 105 | . . . 105 . . . Destroy Structure 216 | . . 40 160 16 . . Lose Combat Pursuer 270 | . . 45 195 30 . . Influence Decreases 1646 | . 189 119 553 434 273 78 Entered New Map 697 | . . 49 71 304 273 . Time Decay 806 | . 179 70 392 120 . 45 Lost Part 110 | . 10 . 90 10 . . Lost Ally 33 | . . . . . . 33 Squads Dispatched 6 | . 2 . 4 . . . Investigation 1 | . . . 1 . . . Extermination . | . . . . . . . Reinforcement 4 | . 2 . 2 . . . Assault 1 | . . . 1 . . . Garrison . | . . . . . . . Intercept . | . . . . . . . Searches Triggered . | . . . . . . . Construction Impeded . | . . . . . . . Haulers Reinforced . | . . . . . . . Active Scanning Responses . | . . . . . . . Cargo Convoy Interrupts . | . . . . . . . Stealth | -11 -10 -10 -9 -9 -9 -8 --------- Run | Yrd Mat Min Mat Min Exi Min Distress Signals 6 | . 1 . 5 . . . Communications Jammed . | . . . . . . . Distress Signals . | . . . . . . . Times Spotted 83 | . 17 13 43 9 . 1 Peak Tracking Total 5 | . 5 5 5 4 . 1 Tactical Retreats 13 | . . 3 9 1 . . Traps | -11 -10 -10 -9 -9 -9 -8 ------- Run | Yrd Mat Min Mat Min Exi Min Traps Triggered 2 | . . . 2 . . . Indirectly . | . . . . . . . Trap Hack Attempts . | . . . . . . . Triggered . | . . . . . . . Disarmed . | . . . . . . . Reprogrammed . | . . . . . . . Reused . | . . . . . . . Traps Extracted . | . . . . . . . Installed . | . . . . . . . Triggered . | . . . . . . . Machines | -11 -10 -10 -9 -9 -9 -8 ---------- Run | Yrd Mat Min Mat Min Exi Min Machines Disabled 7 | . . . 7 . . . Max in Single Turn 3 | . . . 3 . . . Machines Repaired . | . . . . . . . Machines Dismantled . | . . . . . . . Machines Sabotaged . | . . . . . . . Overloaded Fab Kills . | . . . . . . . Hacking | -11 -10 -10 -9 -9 -9 -8 --------- Run | Yrd Mat Min Mat Min Exi Min Machines Accessed 8 | . 2 . 5 . 1 . Terminals 4 | . 1 . 3 . . . Fabricators . | . . . . . . . Repair Stations 1 | . . . 1 . . . Recycling Units 1 | . 1 . . . . . Scanalyzers 1 | . . . 1 . . . Garrison Access . | . . . . . . . Total Hacks 22 | . 3 . 18 . 1 . Successful 15 | . 1 . 13 . 1 . Failed 7 | . 2 . 5 . . . Catastrophic 2 | . . . 2 . . . Database Lockouts . | . . . . . . . Manual 10 | . 2 . 7 . 1 . Terminals 9 | . 2 . 7 . . . Fabricators . | . . . . . . . Repair Stations 2 | . . . 2 . . . Recycling Units 1 | . 1 . . . . . Scanalyzers 9 | . . . 9 . . . Garrison Access . | . . . . . . . Terminal Hacks 4 | . . . 3 . 1 . Branch Access Points 1 | . . . 1 . . . Terminal Index 1 | . . . 1 . . . Scanalyzer Index 1 | . . . 1 . . . Proto ID Catalog 1 | . . . . . 1 . Fabricator Hacks . | . . . . . . . Repair Station Hacks 2 | . . . 2 . . . Scan Component 1 | . . . 1 . . . Repair 1 | . . . 1 . . . Recycling Unit Hacks 1 | . 1 . . . . . Report Inventory 1 | . 1 . . . . . Scanalyzer 8 | . . . 8 . . . Insert Component 4 | . . . 4 . . . Analyze 4 | . . . 4 . . . Garrison Access Hacks . | . . . . . . . Unauthorized Hacks . | . . . . . . . Terminals . | . . . . . . . Fabricators . | . . . . . . . Repair Stations . | . . . . . . . Recycling Units . | . . . . . . . Scanalyzers . | . . . . . . . Garrison Access . | . . . . . . . Data Cores Recovered . | . . . . . . . Used . | . . . . . . . Hacking Detections 4 | . 1 . 3 . . . Full Trace Events . | . . . . . . . Feedback Events . | . . . . . . . Feedback Blocked . | . . . . . . . Robot Schematics Acquired . | . . . . . . . Robots Built . | . . . . . . . Authchips . | . . . . . . . Time . | . . . . . . . Total Robot Build Rating . | . . . . . . . Part Schematics Acquired 4 | . . . 4 . . . Parts Built . | . . . . . . . Authchips . | . . . . . . . Time . | . . . . . . . Total Part Build Rating . | . . . . . . . Parts Repaired 1 | . . . 1 . . . Time 32 | . . . 32 . . . Parts Recycled . | . . . . . . . Recycled Matter . | . . . . . . . Retrieved Matter . | . . . . . . . Retrieved Components . | . . . . . . . Parts Scanalyzed 4 | . . . 4 . . . Part Schematics Acquired 4 | . . . 4 . . . Parts Damaged . | . . . . . . . Bothacking | -11 -10 -10 -9 -9 -9 -8 ------------ Run | Yrd Mat Min Mat Min Exi Min Used RIF Installer . | . . . . . . . Robots Hacked . | . . . . . . . Non-combat . | . . . . . . . Combat . | . . . . . . . Robot Hacks Applied . | . . . . . . . Relay Couplers Released . | . . . . . . . Fabnet Peak Effective % . | . . . . . . . Robots Rewired . | . . . . . . . Allies Hacked . | . . . . . . . Hacks Repelled . | . . . . . . . Allies | -11 -10 -10 -9 -9 -9 -8 -------- Run | Yrd Mat Min Mat Min Exi Min Total Allies 4 | . . . . 4 . . Largest Group 4 | . . . . 4 4 3 Highest-Rated Group 71 | . . . . 71 71 40 Highest-Rated Ally 31 | . . . . 31 31 16 Total Orders 6 | . . . . . . 6 ROAM 4 | . . . . . . 4 FOLLOW 2 | . . . . . . 2 Ally Attacks 35 | . . . . 14 . 21 Total Damage 348 | . . . . 193 . 155 Kills 5 | . . . . 2 . 3 Allies Corrupted . | . . . . . . . Allies Melted . | . . . . . . . Intel | -11 -10 -10 -9 -9 -9 -8 ------- Run | Yrd Mat Min Mat Min Exi Min Active Infowar (turns) . | . . . . . . . Robot Analysis Total . | . . . . . . . Derelict Logs Recovered 1 | . . 1 . . . . Drone Launches . | . . . . . . . Drone Recoveries . | . . . . . . . Exploration | -11 -10 -10 -9 -9 -9 -8 ------------- Run | Yrd Mat Min Mat Min Exi Min Turns Passed 2397 | 64 572 158 930 240 239 194 Spaces Moved 1866 | 39 348 134 834 206 215 90 Core 9 | 9 . . . . . . Treads 193 | 30 163 . . . . . Legs . | . . . . . . . Wheels 1664 | . 185 134 834 206 215 90 Hover . | . . . . . . . Flight . | . . . . . . . Fastest Speed 50 | 50 80 80 80 95 95 95 Average Speed 93 | 134 117 80 83 95 95 95 Slowest Speed 160 | 160 160 80 95 95 95 95 Overloaded Moves . | . . . . . . . Propulsion Burnouts . | . . . . . . . Robots Hopped . | . . . . . . . Potential Cave-ins 2 | . . . 2 . . . Cave-ins Triggered . | . . . . . . . Exploration Rate (%) 36 | 4 58 28 47 41 61 15 Regions Visited 6 Branch Regions 4 Pre-discovered Areas . | . . . . . . . Known Exits Taken 1 | . . . 1 . . . Unknown Exits Taken 5 | 1 1 1 . 1 1 . Scrap Searched 2 | . . 1 . . . 1 Spaces Dug 6 | . . . 6 . . . Terrain Destroyed 271 | . . 46 206 19 . . Melee . | . . . . . . . Projectile . | . . . . . . . AOE 271 | . . 46 206 19 . . Terrain Rammed . | . . . . . . . Walls Destroyed . | . . . . . . . Machines Disabled . | . . . . . . . Actions | -11 -10 -10 -9 -9 -9 -8 --------- Run | Yrd Mat Min Mat Min Exi Min Total 2334 | 51 431 175 986 246 250 195 Wait 273 | . 8 23 72 36 34 100 Move 1860 | 38 347 133 833 205 214 90 Hop . | . . . . . . . Pick Up 33 | 7 14 3 7 1 1 . Fast Attach 10 | . 2 1 6 . . 1 Attach 16 | 6 1 1 7 1 . . Detach 1 | . . . 1 . . . Swap 4 | . . 2 2 . . . Drop 17 | . 7 4 4 . 1 1 Fire 119 | . 51 8 54 3 . 3 Melee . | . . . . . . . Ram 1 | . 1 . . . . . Kick . | . . . . . . . Crush . | . . . . . . . Escape Stasis . | . . . . . . . Rewire . | . . . . . . . Trap . | . . . . . . . Miscellaneous . | . . . . . . . Route ------- -11/Scrapyard -10/Materials (discovered 3 exits: *Mat / [*Min] / [*Sub]) -10/Mines -9/Materials (discovered 4 exits: [*Mat x2] / *Min x2) -9/Mines -9/Exiles -8/Mines History --------- Turn | Location | Event 2 | -11/Scrapyard | Met Revision 17 43 | -11/Scrapyard | Discovered new exit (range 15) 65 | -11/Scrapyard | Entered Materials 290 | -10/Materials | Discovered new exit (range 10) 300 | -10/Materials | Build established: Mutant 437 | -10/Materials | Discovered new exit (range 15) 627 | -10/Materials | Discovered new exit (range 9) 637 | -10/Materials | Entered Mines 700 | -10/Mines | Assembled infested the area 705 | -10/Mines | Assisted by a Guerilla fighting off Assembled 718 | -10/Mines | Met a Derelict bent on vengeance 775 | -10/Mines | Discovered new exit (range 6) 783 | -10/Mines | Learned 4 Materials zone layouts 795 | -10/Mines | Entered Materials 795 | -9/Materials | Evolved 2 slots: Propulsion x1, Utility x1 796 | -9/Materials | Identified exit to Mines 882 | -9/Materials | Destroyed 10 combat bots 947 | -9/Materials | Repaired Mni. Grenade Launcher? 1093 | -9/Materials | Core integrity fell below 50% 1425 | -9/Materials | Core integrity fell below 20% 1547 | -9/Materials | Discovered new exit (range 12) 1595 | -9/Materials | First assault squad dispatched 1663 | -9/Materials | Discovered new exit (range 15) 1723 | -9/Materials | Lost 3 parts (2n1w) 1725 | -9/Materials | Entered Mines 1799 | -9/Mines | Received a Mining Laser from a helpful Derelict 1859 | -9/Mines | Assisted by bots powering up and referring to "LRC-V3" 1888 | -9/Mines | A weapon hastily lodged in a ceiling crevice suddenly fell to the ground 1932 | -9/Mines | Deemed a non-threat by the Exiles lab entrance 1933 | -9/Mines | Discovered new exit (range 5) 1965 | -9/Mines | Entered Exiles 1965 | -9/Exiles | Accompanied by 4 allies 1989 | -9/Exiles | Met 8R-AWN 2003 | -9/Exiles | Met EX-HEX 2032 | -9/Exiles | Met EX-BIN 2043 | -9/Exiles | Aligned with FarCom system 2044 | -9/Exiles | Given EX-Vault access code 2067 | -9/Exiles | Opened EX-Vault 2075 | -9/Exiles | Found Firepult 2097 | -9/Exiles | Warned to stay clear of 0b10 Research branches 2108 | -9/Exiles | Exiles lab attacked by MAIN.C 2160 | -9/Exiles | Discovered new exit (range 12) 2204 | -9/Exiles | Left Exiles lab with Firepult 2204 | -9/Exiles | Entered Mines 2204 | -8/Mines | Accompanied by 3 allies 2398 | -8/Mines | Destroyed by H-55 Commando with Assault Rifle Last Messages --------------- System corrupted: Energy discharge (-95). K-01 Serf collects debris. R-06 Scavenger collects Lgt. Nuclear Core. U5Y:SDJR0=U5 KCBEZCTAHLTAI= YM3C8 Acquired 14 matter. Dropped Ion Engine. Acquired Nuclear Core. R-06 Scavenger collects Ion Engine. K-01 Serf collects debris. Acquired 43 matter. K-01 Serf collects debris. K-01 Serf cleans the Core Extractor. K-01 Serf collects debris. K-01 Serf cleans the Core Extractor. Slug penetrates ZX-C33. ZX-C33 destroyed. K-01 Serf cleans the Core Extractor. Slug penetrates Wall. K-01 Serf cleans the Core Extractor. Penetrated by Slug. Map ----- +----------------------------------------------------+ | ???????????????????????????????????? | | ???????????????????????????????????? | | ???????????????????????????????????? | | ???????????????????????????????????? | | ???????????????????????????????????? | | ???????????????????????????????????? | | ???????????????????????????????????? | | ???????????????????????????????????? | | ???????????????????????????????????? | | ???????????????????????????????????? | | ???????????????????????????????????? | | ???????????????????????????????????? | | ???????????????????????????????????? | | ???????????????????????????????????? | | ???????????????????????????????????? | | ????????????????????????????###??? | | ???????????????????????????%[ | | ?????????s????????????#### =! " | | ?????????ss???????????# " | | ???????????s??????????# #### " | | ??????#???????????????# ##?????????? | | ??????# ?????????????## ##????????? | | ?????## ####????????## #????????? | | ?????# #???????## / #????????? | | ?????# ######### !#????????? | | ?????# k @=!%|%h%*%% = #????????? | | ?????# """ ####=##### =##????????? | | ?????# """ #??# #???## ###?????????? | | ?????# """ #??# #????# #???????????? | | ?????#######??# #????# #???????????? | | ??????????????# ????# ####????????? | | ?????????????? ????# #????????? | | ?????????????? ????#### #????????? | | ?????????????? ???????# #????????? | | ?????????????? ???????# #????????? | | ?????????????? ???????# #????????? | | ?????????????? #???????# #????????? | | ??????????????##????????# #????????? | | ????????????????????????# #????????? | | ????????????????????????# #????????? | | ????????????????????????#[### #????? | | ????????????????????????#[ ! #????? | | ????????????????????????#/#####????? | | ????????????????????????# ##???????? | | ???????????????????????## ####????? | | ???????????????????????# ##???? | | ???????????????????????# #???? | | ???????????????????????## | | ????????????????????????### ###### | | ???????????????????????????####????? | +----------------------------------------------------+ Best States ------------- Heat Dissipation 28 Energy Generation 14 Energy Capacity 250 Matter Stores 300 Matter Capacity 300 Sight Range 16 Terrain Scan Density 10 Evasion (%) 44 Targeting Accuracy 5 Launcher Accuracy 20 Recoil Reduction 2 Offensive Hacking 10 Item Schematics ----------------- Mni. Grenade Launcher | -9/Materials | Scanalyzed Lrg. Matter Pod | -9/Materials | Scanalyzed Imp. Hover Unit | -9/Materials | Scanalyzed Melee Analysis Suite | -9/Materials | Scanalyzed Robot Schematics ------------------ None Fabricated ------------ Nothing Repaired ---------- Mni. Grenade Launcher | 28% | -9/Materials Alien Tech Used ----------------- None Achievements -------------- None Challenges ------------ None Game ------ Seed RegenerativeScrapBeam Manual? 0 Play Time 00:31:24 Cumulative 38.6 hours Start 2025.08.31 @ 00:26:11 End 2025.08.31 @ 00:55:32 Sessions 1 Manual Loads 0 Difficulty Rogue Special Mode None Game No. 51 Rogue 41 Adventurer 10 Explorer 0 Win Type - Total 0 Types 0/0/0/0/0/0/0/0/0/0 Lore% 10 Gallery% 24 Achievement% 30 Wizard Run 0 Options --------- Layout 1 ASCII 0 Keyboard 0 Movement Arrows Keybinds 0 Fullscreen 1 Font 24/Smallcaps Map View 50x35 Zoom Use 0% Tactical HUD 0 Map Filters NONE Filters NONE Steam 1 RUN: 485a03f4-ca72-479f-9817-b6a18cd325f1